bitfinex/quotes_ETHUSD_20240602
["timestamp","ask_amount","ask_price","bid_price","bid_amount"]
[1717320721926,2.64411,3782.0,3780.9,4.90162]
[1717320722524,2.64411,3782.0,3780.9,2.64482]
[1717320723724,3.94531263,3782.3,3780.9,2.64482]
[1717320723725,2.6443,3781.8,3780.9,2.64482]
[1717320723914,2.64442,3781.6,3780.5,2.64508]
[1717320724221,2.64442,3781.6,3780.5,2.87076]
[1717320724420,2.64442,3781.6,3780.6,0.55]
[1717320726315,0.03378204,3781.5,3780.6,0.55]
[1717320727225,2.64453,3781.4,3780.6,0.55]
[1717320727393,2.67829658,3781.4,3780.6,1.026076]
[1717320727587,0.03376658,3781.4,3780.7,2.64498]
[1717320727926,2.2841,3781.7,3780.8,0.55]
[1717320728092,0.03375112,3781.3,3780.8,0.55]
[1717320728292,2.2841,3781.7,3780.8,0.55]
[1717320728489,0.03373566,3781.2,3780.8,0.55]
[1717320728709,2.2841,3781.7,3780.8,1.1758636]
[1717320728897,0.0337202,3781.1,3780.8,1.1758636]
[1717320729119,2.2841,3781.7,3780.8,1.1758636]
[1717320729640,0.0337975,3781.6,3780.8,1.1758636]
[1717320729810,0.0337975,3781.6,3780.9,3.20851196]
[1717320729989,9.96305514,3781.8,3781.1,2.64473]
[1717320730188,0.03365901,3781.5,3781.1,2.64473]
[1717320730391,9.96305514,3781.8,3781.1,2.64473]
[1717320730646,0.03369336,3781.4,3781.1,2.64473]
[1717320730784,0.03369336,3781.4,3781.1,3.08315856]
[1717320730991,7.31875514,3781.8,3781.1,3.08315856]
[1717320731228,0.0336779,3781.3,3781.1,2.64473]
[1717320731413,7.31875514,3781.8,3781.2,0.55]
[1717320731726,7.31875514,3781.8,3781.3,2.64459]
[1717320731929,3.21109479,3782.1,3781.4,0.869459]
[1717320732232,7.31875514,3782.3,3781.6,2.64438]
[1717320732418,1.63918216,3782.5,3781.9,2.64417]
[1717320732628,3.21109479,3782.6,3782.1,2.64402]
[1717320732803,1.63918216,3782.6,3782.1,2.64402]
[1717320733006,1.63918216,3782.6,3782.2,0.60287383]
[1717320733297,1.63918216,3782.6,3782.3,2.64388]
[1717320734049,1.63918216,3782.7,3782.4,0.55]
[1717320734335,1.63918216,3782.9,3782.4,0.55]
[1717320735620,1.63918216,3783.0,3782.4,0.55]
[1717320735833,1.63918216,3783.0,3782.5,2.64369]
[1717320735999,1.63918216,3783.0,3782.6,0.55]
[1717320736437,8.9579373,3783.1,3782.7,2.64361]
[1717320736638,7.31875514,3783.1,3782.8,0.55]
[1717320737556,1.63918216,3783.4,3782.9,2.64343]
[1717320737763,1.63918216,3783.4,3783.0,0.55]
[1717320737926,1.63918216,3783.5,3783.0,0.55]
[1717320738671,1.6457769,3783.5,3783.1,2.64332]
[1717320738963,1.6457769,3783.5,3783.2,0.55]
[1717320739121,1.6457769,3783.7,3783.3,2.64319]
[1717320739456,1.6457769,3783.9,3783.4,0.55]
[1717320740118,1.6457769,3784.0,3783.4,0.55]
[1717320740449,1.6457769,3784.0,3783.4,0.869319]
[1717320740639,4.2883669,3784.2,3783.4,0.869319]
[1717320740811,1.6457769,3784.2,3783.6,2.64297]
[1717320741022,1.6457769,3784.2,3783.7,0.55]
[1717320741257,2.64225,3784.7,3783.7,0.55]
[1717320741258,0.03397843,3784.1,3783.7,0.55]
[1717320741457,2.64225,3784.7,3783.7,0.55]
[1717320741458,1.6457769,3784.5,3783.8,2.64283]
[1717320741613,0.0328549,3784.0,3783.9,0.55]
[1717320741817,1.6457769,3784.6,3783.9,0.55]
[1717320741818,4.2880269,3784.7,3783.9,0.55]
[1717320742065,1.6457769,3784.8,3784.0,2.64268]
[1717320742213,8.96453204,3785.0,3784.0,2.64268]
[1717320742413,1.6457769,3785.0,3784.1,0.55]
[1717320743158,2.64198,3785.1,3784.1,0.55]
[1717320743159,4.2877569,3785.1,3784.1,0.55]
[1717320743326,4.2877569,3785.1,3784.1,1.10032545]
[1717320743511,2.64198,3785.1,3784.1,1.10032545]
[1717320743718,2.64198,3785.1,3784.1,1.04748154]
[1717320744052,2.64198,3785.1,3784.2,2.64252]
[1717320744243,2.64198,3785.1,3784.3,0.55]
[1717320744445,2.64198,3785.1,3784.4,0.42400015]
[1717320744648,2.64198,3785.1,3784.5,0.55]
[1717320746153,1.6457769,3785.9,3784.9,1.34]
[1717320746366,11.53308331,3786.3,3785.0,0.55]
[1717320746367,2.64133,3786.0,3785.0,0.55]
[1717320746775,1.6457769,3786.4,3785.1,0.453211]
[1717320746977,1.6457769,3786.5,3785.2,3.19186]
[1717320747185,2.3877,3786.7,3785.2,2.64186]
[1717320747186,4.0334769,3786.7,3785.2,2.64186]
[1717320747382,2.3877,3786.7,3785.3,0.55]
[1717320747566,1.6457769,3786.6,3785.3,0.55]
[1717320748286,2.3877,3786.7,3785.3,0.55]
[1717320748484,2.64127,3786.1,3785.3,0.55]
[1717320748644,2.64127,3786.1,3785.3,0.869186]
[1717320754792,2.64127,3786.1,3785.3,0.55]
[1717320755764,2.64127,3786.1,3785.4,2.4764]
[1717320756093,2.64127,3786.1,3785.5,0.55]
[1717320756247,0.03320763,3786.0,3785.5,0.60282462]
[1717320756446,5.64101,3786.5,3785.7,2.6415]
[1717320756684,5.64101,3786.5,3785.8,0.55]
[1717320756685,0.0331922,3785.9,3785.8,0.55]
[1717320756984,2.64101,3786.5,3785.8,0.55]
[1717320757163,2.64101,3786.5,3785.8,0.91334225]
[1717320757360,0.03326933,3786.4,3785.8,0.91334225]
[1717320758062,0.03326933,3786.4,3785.8,0.36334225]
[1717320758263,2.64115,3786.3,3785.6,0.44192246]
[1717320758474,2.67447999,3786.3,3785.7,0.55]
[1717320761266,2.64132,3786.0,3785.4,2.4764]
[1717320761517,2.64132,3786.0,3785.5,0.55]
[1717320761669,0.03321561,3785.9,3785.5,0.55]
[1717320763898,0.03321561,3785.9,3785.6,2.4258]
[1717320764062,0.03321561,3785.9,3785.7,0.84758]
[1717320764391,7.31875514,3786.6,3785.8,2.64144]
[1717320764601,7.31875514,3786.6,3785.9,0.55]
[1717320765266,9.95970514,3786.6,3785.9,0.55]
[1717320766567,9.95970514,3786.6,3785.8,0.55]
[1717320767095,9.73075514,3786.6,3785.2,2.4258]
[1717320767306,2.64131,3786.0,3785.2,2.4258]
[1717320768474,2.64158,3785.7,3784.7,2.4258]
[1717320769896,2.64158,3785.7,3784.8,0.55]
[1717320770095,2.64158,3785.7,3784.9,0.354003]
[1717320770400,2.64158,3785.7,3785.0,0.55]
[1717320771300,0.03109289,3785.6,3785.0,0.55]
[1717320772897,0.02902984,3785.5,3785.0,0.55]
[1717320773111,7.31875514,3785.9,3785.0,0.55]
[1717320773293,0.02901442,3785.4,3785.1,2.9965323]
[1717320773600,7.31875514,3785.9,3785.2,2.9758]
[1717320773770,0.02892989,3785.3,3785.2,2.9758]
[1717320773986,7.31875514,3785.9,3785.2,2.9758]
[1717320774172,0.0289558,3785.3,3785.2,2.9758]
[1717320774501,8.89296186,3785.9,3785.3,2.64179]
[1717320774798,8.89296186,3785.9,3785.4,0.55]
[1717320775168,2.14528715,3785.8,3785.4,0.55]
[1717320777208,2.14528715,3785.8,3785.5,2.64164]
[1717320777379,1.57420672,3786.0,3785.7,2.64151]
[1717320777583,1.57444522,3786.2,3785.8,0.55]
[1717320777764,2.14548129,3786.2,3785.8,0.55]
[1717320777966,2.14548129,3786.1,3785.9,0.319151]
[1717320778178,1.57444522,3786.1,3786.0,0.55]
[1717320778773,2.14548129,3786.1,3786.0,0.55]
[1717320778960,1.57444522,3786.1,3786.0,0.55]
[1717320779368,2.14548129,3786.1,3786.0,0.55]
[1717320779563,1.57444522,3786.1,3786.0,0.9010661]
[1717320779980,2.14548129,3786.1,3786.0,0.9010661]
[1717320780180,1.57444522,3786.1,3786.0,0.9010661]
[1717320780391,1.57444522,3786.1,3786.0,0.55]
[1717320780702,2.64179,3785.3,3784.1,2.4258]
[1717320781211,2.64198,3785.1,3784.1,2.4258]
[1717320781367,2.64198,3785.1,3784.2,0.640845]
[1717320781867,4.21613863,3785.1,3784.2,0.640845]
[1717320783109,2.64198,3785.1,3784.2,0.640845]
[1717320783771,2.64228,3784.7,3784.2,0.640845]
[1717320783969,2.64228,3784.7,3783.8,1.34]
[1717320785915,2.64228,3784.7,3783.9,0.55]
[1717320786224,0.0284497,3784.6,3783.8,0.55]
[1717320786366,2.64239,3784.5,3783.9,0.548234]
[1717320786569,2.64239,3784.5,3784.0,0.55]
[1717320786823,0.02842747,3784.4,3784.0,0.55]
[1717320790907,2.64251,3784.3,3784.0,0.55]
[1717320791104,0.02839659,3784.2,3784.0,0.55]
[1717320791319,2.64263,3784.1,3783.0,1.34]
[1717320791500,0.02837435,3784.0,3783.1,0.134]
[1717320791927,0.02837435,3784.0,3783.1,2.77731]
[1717320792642,0.02837435,3784.0,3783.2,0.55]
[1717320792803,0.02837435,3784.0,3783.3,0.466731]
[1717320793002,0.02837435,3784.0,3783.4,0.55]
[1717320793220,0.02837435,3784.0,3783.4,3.1931]
[1717320793403,0.02837435,3784.0,3783.7,2.2894]
[1717320793628,0.02837435,3784.0,3783.8,0.55]
[1717320793830,2.64238,3784.5,3783.9,0.548235]
[1717320794029,2.64238,3784.5,3784.0,0.55]
[1717320797007,7.31875514,3784.8,3784.0,0.55]
[1717320798949,7.31875514,3784.8,3784.1,1.34]
[1717320799197,7.31875514,3784.8,3784.3,2.64244]
[1717320799394,7.31875514,3784.8,3784.4,1.003244]
[1717320799546,7.31875514,3784.8,3784.5,2.64234]
[1717320799750,7.31875514,3784.8,3784.6,0.55]
[1717320800687,2.64182,3785.3,3784.6,0.55]
[1717320801291,0.02732622,3785.2,3784.7,2.6422]
[1717320801595,7.31875514,3785.6,3784.8,1.00322]
[1717320801886,2.64157,3785.7,3784.8,1.00322]
[1717320802087,0.02750231,3785.6,3784.8,1.00322]
[1717320802249,0.02750231,3785.6,3784.9,0.364542]
[1717320802444,0.02750231,3785.6,3785.0,0.55]
[1717320807681,2.64166,3785.5,3785.0,0.55]
[1717320807885,0.02766791,3785.4,3785.0,0.55]
[1717320808696,2.64181,3785.3,3785.0,0.55]
[1717320808994,0.02763705,3785.2,3785.0,0.55]
[1717320809415,2.64181,3785.3,3785.0,0.55]
[1717320809623,0.02762162,3785.1,3785.0,0.55]
[1717320809785,2.64181,3785.3,3785.0,0.55]
[1717320809986,0.02762162,3785.1,3785.0,0.55]
[1717320810191,2.64181,3785.3,3785.0,0.55]
[1717320810397,0.02762162,3785.1,3785.0,0.55]
[1717320810587,2.64181,3785.3,3785.0,0.55]
[1717320810802,0.02762162,3785.1,3785.0,0.55]
[1717320810993,2.64181,3785.3,3785.0,0.55]
[1717320811194,0.02762162,3785.1,3785.0,0.55]
[1717320811425,2.64201,3785.0,3784.4,0.453244]
[1717320811671,2.64201,3785.0,3784.5,0.4435694]
[1717320811789,0.02759939,3784.9,3784.5,0.4435694]
[1717320812429,0.02759939,3784.9,3784.0,2.6427]
[1717320812430,2.64215,3784.8,3784.0,2.6427]
[1717320812793,0.02764476,3784.7,3784.0,2.6427]
[1717320813745,0.02764476,3784.7,3784.1,0.55]
[1717320821659,3.02764476,3784.7,3784.1,0.55]
[1717320822573,2.64229,3784.6,3784.1,0.55]
[1717320822871,2.64229,3784.6,3783.8,0.55]
[1717320823079,0.02761389,3784.5,3783.9,0.31929]
[1717320823282,0.02761389,3784.5,3784.0,0.55]
[1717320829695,0.02761389,3784.5,3784.3,0.558]
[1717320829992,0.02761389,3784.5,3784.4,0.55]
[1717320831998,4.2911854,3784.9,3784.4,0.55]
[1717320832166,4.2911854,3784.9,3784.7,0.558]
[1717320833055,1.6490954,3784.9,3784.7,0.558]
[1717320833294,1.6490954,3785.0,3784.8,0.55]
[1717320833600,1.6490954,3785.0,3784.9,3.20007]
[1717320833783,2.6416,3785.6,3784.9,4.125077]
[1717320833784,1.6490954,3785.5,3784.9,4.125077]
[1717320833982,1.6490954,3785.5,3785.2,0.558]
[1717320834207,1.6490954,3785.5,3785.3,0.55]
[1717320834627,4.2908154,3785.4,3784.3,2.64243]
[1717320834896,4.2908154,3785.4,3785.0,0.558]
[1717320835110,2.64172,3785.4,3785.0,0.558]
[1717320835597,1.6490954,3785.5,3785.3,0.558]
[1717320835897,1.6490954,3785.7,3785.4,0.55]
[1717320836119,4.6490954,3785.7,3785.4,0.55]
[1717320837142,4.6490954,3785.7,3785.2,0.55]
[1717320837429,1.6490954,3785.6,3785.2,0.55]
[1717320837784,1.6490954,3785.6,3785.3,0.558]
[1717320837981,1.6490954,3785.7,3785.4,0.55]
[1717320838721,1.6490954,3785.7,3784.7,2.64214]
[1717320838945,6.7878954,3785.6,3784.7,2.64214]
[1717320839222,1.6490954,3785.5,3785.0,0.558]
[1717320839526,2.64173,3785.4,3785.0,0.558]
[1717320840033,4.2906954,3785.6,3785.2,0.558]
[1717320840185,4.2906954,3785.6,3784.7,2.64214]
[1717320840382,2.64175,3785.4,3785.0,0.558]
[1717320840938,1.6490954,3785.6,3785.2,0.558]
[1717320841254,1.6490954,3785.6,3784.8,0.55]
[1717320841255,1.6490954,3785.5,3785.0,0.558]
[1717320841399,1.6490954,3785.5,3785.1,0.55]
[1717320841601,1.6490954,3785.6,3785.1,0.55]
[1717320841796,1.6490954,3785.6,3785.2,0.558]
[1717320842000,2.64152,3785.7,3785.4,0.558]
[1717320842001,1.6490954,3785.7,3785.4,0.558]
[1717320842311,3.0,3785.8,3785.6,0.558]
[1717320842535,1.6490954,3785.9,3785.6,0.558]
[1717320842739,1.6490954,3785.9,3785.8,0.558]
[1717320843049,1.6490954,3786.1,3785.8,1.108]
[1717320843248,1.6490954,3786.0,3785.8,0.558]
[1717320843416,1.6490954,3786.0,3785.9,0.55]
[1717320843959,1.6490954,3786.0,3785.6,0.55]
[1717320844124,1.6490954,3786.2,3785.7,2.64146]
[1717320844449,4.6490954,3786.4,3785.8,0.55]
[1717320845016,1.6490954,3786.3,3785.8,0.55]
[1717320845413,2.6411,3786.3,3785.8,0.55]
[1717320845609,2.6411,3786.3,3785.6,0.55]
[1717320845812,2.6411,3786.3,3785.5,0.55]
[1717320846350,0.02700717,3786.2,3785.5,0.55]
[1717320846711,0.02700717,3786.2,3785.4,0.55]
[1717320847513,2.64133,3786.0,3784.9,2.64206]
[1717320847787,5.00859,3785.8,3785.0,0.4298274]
[1717320848064,5.00859,3785.8,3784.7,2.64215]
[1717320848236,0.02702165,3785.7,3784.8,0.264215]
[1717320848565,2.64162,3785.6,3784.8,0.264215]
[1717320848781,0.02699942,3785.5,3784.8,0.264215]
[1717320849294,2.64174,3785.4,3784.7,2.64215]
[1717320849425,2.64174,3785.4,3784.4,3.97942]
[1717320849626,0.0269772,3785.3,3784.4,3.97942]
[1717320849852,0.0269772,3785.3,3784.4,4.57095785]
[1717320850346,0.0269772,3785.3,3784.9,2.64201]
[1717320850640,2.6416,3785.6,3784.6,2.64228]
[1717320850824,0.0269704,3785.2,3784.7,0.45708179]
[1717320851021,2.6416,3785.6,3784.7,0.45708179]
[1717320851221,0.02695497,3785.1,3784.8,0.55]
[1717320851564,0.02693954,3785.0,3784.8,0.55]
[1717320851769,9.96035514,3785.6,3784.8,0.55]
[1717320851987,0.0270167,3785.5,3784.8,0.55]
[1717320854150,2.64173,3785.4,3784.6,2.64228]
[1717320854487,0.0269917,3785.3,3784.7,0.55]
[1717320856089,0.0269917,3785.3,3784.8,2.64211]
[1717320856270,0.0269917,3785.3,3784.9,0.55]
[1717320856474,7.31875514,3785.6,3784.9,0.55]
[1717320856659,0.02697627,3785.2,3784.9,0.55]
[1717320856870,7.31875514,3785.6,3784.9,0.55]
[1717320857071,0.02696084,3785.1,3784.9,0.55]
[1717320857384,7.31875514,3785.6,3785.0,0.5956538]
[1717320857587,7.31875514,3785.6,3785.1,0.55]
[1717320857788,7.31875514,3785.6,3784.9,0.55]
[1717320858307,7.31875514,3785.6,3785.0,2.64199]
[1717320858599,7.31875514,3785.6,3785.2,2.64183]
[1717320858995,7.31875514,3785.6,3785.3,0.55]
[1717320859163,7.31875514,3785.6,3785.4,0.319183]
[1717320859374,7.31875514,3785.6,3785.5,0.55]
[1717320859986,7.31875514,3785.6,3785.5,3.19165]
[1717320860193,1.64818722,3786.5,3785.5,3.19165]
[1717320860194,2.64096,3786.5,3785.5,3.19165]
[1717320860370,2.64096,3786.5,3785.6,0.5822333]
[1717320860578,4.28914722,3786.5,3785.7,0.55]
[1717320861294,0.02637581,3786.4,3785.7,3.19145]
[1717320861497,3.02637581,3786.4,3785.7,3.83188663]
[1717320861683,0.02637581,3786.4,3785.7,3.83188663]
[1717320862377,4.01498352,3786.7,3785.7,3.83188663]
[1717320862582,0.02643256,3786.6,3785.7,3.83188663]
[1717320862814,0.02643256,3786.6,3785.9,2.64137]
[1717320862992,0.02643256,3786.6,3786.0,0.55]
[1717320865720,0.02643256,3786.6,3786.1,0.05281821]
[1717320865917,0.02643256,3786.6,3786.2,0.55]
[1717320866282,0.02643256,3786.6,3786.0,0.55]
[1717320866482,0.02643256,3786.6,3786.0,0.91649953]
[1717320866741,0.02643256,3786.6,3786.1,2.64123]
[1717320866996,7.31875514,3786.8,3786.2,0.55]
[1717320867267,0.02641764,3786.5,3786.3,0.72187295]
[1717320867449,2.3584,3787.1,3786.3,0.72187295]
[1717320867450,2.3584,3787.1,3786.4,0.55]
[1717320868245,5.3584,3787.1,3786.4,0.55]
[1717320868866,2.64061,3787.0,3786.4,0.55]
[1717320869184,2.64082,3786.7,3785.7,2.64145]
[1717320869332,3.0,3787.1,3785.7,2.64145]
[1717320869333,2.64096,3786.5,3785.7,2.64145]
[1717320870577,2.64076,3786.8,3785.8,2.324]
[1717320870750,2.64076,3786.8,3785.9,0.55]
[1717320870943,2.64076,3786.8,3786.1,2.64118]
[1717320871266,2.64076,3786.8,3786.2,0.55]
[1717320873936,5.64054,3787.1,3786.2,0.55]
[1717320874411,5.64054,3787.1,3786.3,2.69389313]
[1717320874683,2.64054,3787.1,3786.4,0.55]
[1717320875351,2.64054,3787.1,3786.4,0.60281215]
[1717320875554,2.64054,3787.1,3786.5,0.32438922]
[1717320875757,2.64054,3787.1,3786.6,0.55]
[1717320876136,0.02577625,3787.0,3786.6,0.55]
[1717320879561,2.64068,3786.9,3786.4,0.55]
[1717320879773,0.0258325,3786.8,3786.2,0.55]
[1717320880084,0.0258325,3786.8,3786.2,0.319129]
[1717320880376,0.0258325,3786.8,3786.3,0.55]
[1717320884775,2.64085,3786.7,3786.3,0.55]
[1717320885006,0.02587101,3786.6,3785.7,2.6415]
[1717320885142,0.02587101,3786.6,3785.8,0.55]
[1717320885347,0.02587101,3786.6,3785.9,0.45285]
[1717320885547,0.02587101,3786.6,3786.0,0.55]
[1717320885771,0.02587101,3786.6,3786.2,2.3409]
[1717320885985,3.57096368,3787.1,3786.3,0.55]
[1717320886158,0.02580976,3787.0,3786.3,0.55]
[1717320886484,0.02580976,3787.0,3786.3,1.236908]
[1717320888378,0.02580976,3787.0,3786.3,3.877948]
[1717320889170,4.21743808,3787.2,3786.3,3.877948]
[1717320889371,0.57091458,3787.1,3786.3,3.877948]
[1717320889573,0.59677377,3787.1,3786.6,0.557]
[1717320889880,2.17367185,3787.1,3786.7,0.55]
[1717320891782,0.59677377,3787.1,3786.7,0.55]
[1717320892007,1.60282075,3787.1,3786.7,0.55]
[1717320892212,2.64061,3787.0,3786.6,0.557]
[1717320892410,2.64061,3787.0,3786.7,0.55]
[1717320892411,4.78849846,3787.0,3786.7,0.55]
[1717320892583,0.02595594,3786.9,3786.7,0.55]
[1717320893511,0.02595594,3786.9,3786.6,0.557]
[1717320893713,0.59689175,3786.9,3786.7,0.55]
[1717320894718,0.59689175,3786.9,3786.5,0.557]
[1717320894909,0.59689175,3786.9,3786.6,0.55]
[1717320896207,2.17385331,3786.9,3786.6,0.55]
[1717320897027,2.17385331,3786.9,3786.5,0.557]
[1717320897233,2.17385331,3786.9,3785.6,2.64153]
[1717320897234,0.59689175,3786.9,3785.6,2.64153]
[1717320897436,2.17385331,3786.9,3786.1,0.557]
[1717320897804,1.57696156,3786.8,3786.1,0.557]
[1717320898016,0.02593559,3786.7,3786.1,0.557]
[1717320898534,2.64094,3786.6,3786.1,0.557]
[1717320898734,2.64094,3786.6,3786.2,0.55]
[1717320899039,0.02592202,3786.5,3786.2,0.55]
[1717320899934,2.64103,3786.4,3786.0,0.557]
[1717320900094,2.64123,3786.2,3785.2,2.6418]
[1717320900303,2.47522202,3786.5,3784.7,4.98307]
[1717320900304,2.64158,3785.7,3784.7,4.98307]
[1717320900693,0.02563646,3785.6,3785.5,0.557]
[1717320901528,2.64129,3786.1,3785.5,0.557]
[1717320901837,2.64129,3786.1,3785.4,2.3409]
[1717320901838,2.64129,3786.1,3785.9,0.557]
[1717320902135,0.02569816,3786.0,3785.4,2.3409]
[1717320902438,0.02569816,3786.0,3785.6,0.557]
[1717320902606,0.02569816,3786.0,3785.7,0.55]
[1717320902799,0.02569816,3786.0,3785.6,0.557]
[1717320902998,0.02569816,3786.0,3785.7,0.55]
[1717320903691,2.64139,3785.9,3785.0,2.64194]
[1717320903894,2.64139,3785.9,3785.5,0.557]
[1717320904093,0.02567595,3785.8,3785.3,2.64179]
[1717320904291,4.29299507,3786.2,3785.7,0.557]
[1717320904760,0.02572222,3786.1,3785.7,0.557]
[1717320904898,0.02572222,3786.1,3785.8,0.55]
[1717320905338,1.67754729,3786.1,3785.8,0.55]
[1717320905635,1.67754729,3786.1,3785.9,0.557]
[1717320905843,0.02572222,3786.1,3785.9,0.557]
[1717320906747,0.02572222,3786.1,3786.0,0.55]
[1717320906927,0.02572222,3786.1,3786.0,0.7157]
[1717320907502,1.65255648,3786.3,3786.0,0.7157]
[1717320907723,1.65255648,3786.3,3786.2,0.557]
[1717320907999,1.65255648,3786.4,3786.2,1.107]
[1717320908201,1.65255648,3786.4,3786.3,1.107]
[1717320908401,1.65255648,3786.5,3786.3,1.107]
[1717320910147,1.65255648,3786.4,3786.3,1.107]
[1717320910517,9.95964514,3786.6,3786.3,1.107]
[1717320910518,1.65255648,3786.5,3786.3,1.107]
[1717320912099,2.64104,3786.4,3785.4,2.4215]
[1717320912249,4.29359648,3786.4,3786.0,0.557]
[1717320912949,2.64104,3786.4,3786.0,0.557]
[1717320913454,2.64104,3786.4,3786.1,0.55]
[1717320914150,4.29359648,3786.4,3786.1,0.55]
[1717320914446,4.29359648,3786.4,3786.2,2.9785]
[1717320914632,1.65255648,3786.6,3786.3,0.90285]
[1717320914825,1.65255648,3786.6,3786.3,0.55]
[1717320915717,1.65255648,3786.6,3786.4,0.557]
[1717320916117,1.65255648,3786.7,3786.4,0.557]
[1717320916451,4.29336648,3786.8,3786.6,0.557]
[1717320916653,4.29336648,3786.8,3786.7,0.55]
[1717320918968,2.64081,3786.8,3786.7,0.55]
[1717320919268,4.29338121,3786.8,3786.4,1.107]
[1717320919613,4.29338121,3786.8,3786.4,0.55]
[1717320919817,4.29338121,3786.8,3786.4,1.107]
[1717320920942,4.29338121,3786.8,3786.4,0.55]
[1717320921148,0.02571789,3786.7,3786.4,1.107]
[1717320921458,0.02570247,3786.6,3786.4,1.107]
[1717320921617,4.29338121,3786.8,3786.4,1.107]
[1717320921819,0.02571789,3786.7,3786.4,1.107]
[1717320922021,2.64089,3786.6,3786.2,0.557]
[1717320922260,0.02568705,3786.5,3786.2,0.557]
[1717320922766,0.02568705,3786.5,3786.0,0.557]
[1717320923523,2.64104,3786.4,3785.5,2.64162]
[1717320923740,2.66676446,3786.4,3786.0,0.557]
[1717320924964,2.66676446,3786.4,3785.6,1.056312]
[1717320925270,2.64119,3786.2,3785.8,0.557]
[1717320925417,2.64119,3786.2,3785.9,0.55]
[1717320925625,0.02564589,3786.1,3785.9,0.55]
[1717320926263,0.02564589,3786.1,3785.6,0.506312]
[1717320926451,0.02564589,3786.1,3785.2,2.64185]
[1717320926452,0.02564589,3786.1,3785.7,1.107]
[1717320927116,0.02564589,3786.1,3785.9,0.557]
[1717320928463,2.64131,3786.0,3785.2,2.64185]
[1717320928624,2.64131,3786.0,3785.9,0.557]
[1717320929230,2.64131,3786.0,3785.7,0.557]
[1717320929966,2.64131,3786.0,3785.3,0.55]
[1717320930267,2.64131,3786.0,3785.7,0.557]
[1717320930469,2.64131,3786.0,3785.3,0.8956035]
[1717320930623,2.64131,3786.0,3785.8,0.557]
[1717320931189,2.64151,3785.8,3785.3,0.55]
[1717320931390,2.64151,3785.8,3785.6,0.557]
[1717320932860,1.65256598,3786.0,3785.6,0.557]
[1717320933059,1.65256598,3786.0,3785.8,0.557]
[1717320933267,1.65256598,3786.1,3785.8,0.557]
[1717320933477,1.65256598,3786.1,3786.0,0.557]
[1717320934091,2.6414,3785.9,3785.0,0.55]
[1717320934395,2.6414,3785.9,3785.7,0.557]
[1717320935211,1.65256598,3786.3,3785.7,3.19851]
[1717320935364,2.64109,3786.4,3785.7,3.19851]
[1717320935365,4.29365598,3786.4,3786.2,0.557]
[1717320935871,2.64109,3786.4,3786.2,0.557]
[1717320936073,0.0669273,3786.3,3786.2,0.557]
[1717320937284,0.0669273,3786.3,3786.2,1.107]
[1717320937457,0.0669273,3786.3,3786.2,1.48183]
[1717320937972,1.65256598,3786.6,3786.2,1.48183]
[1717320938274,1.65256598,3786.6,3786.3,0.55]
[1717320938493,1.65256598,3786.6,3786.4,0.557]
[1717320938696,1.65256598,3786.6,3786.0,2.6413]
[1717320938996,1.65256598,3786.6,3786.3,0.557]
[1717320939392,1.65256598,3786.5,3786.1,0.55]
[1717320939616,1.65256598,3786.5,3786.2,0.557]
[1717320939920,1.65256598,3786.6,3786.2,0.557]
[1717320940489,1.65256598,3786.6,3785.8,0.55]
[1717320940693,1.65256598,3786.5,3786.2,0.557]
[1717320940894,1.65256598,3786.4,3786.2,0.557]
[1717320941416,1.65256598,3786.5,3786.2,0.557]
[1717320941616,1.65256598,3786.5,3785.8,1.100221]
[1717320941617,1.65256598,3786.5,3785.9,2.64131]
[1717320941913,1.65256598,3786.6,3786.4,0.557]
[1717320942682,1.65256598,3786.6,3786.3,0.557]
[1717320943538,4.29352598,3786.5,3786.3,0.557]
[1717320944033,2.64096,3786.5,3786.3,0.557]
[1717320944718,4.29352598,3786.5,3786.3,0.557]
[1717320944920,4.29352598,3786.5,3786.2,0.557]
[1717320944921,1.65256598,3786.4,3786.2,0.557]
[1717320945095,1.65256598,3786.4,3785.6,2.64158]
[1717320945297,1.65256598,3786.4,3786.1,0.557]
[1717320945721,1.65256598,3786.4,3786.3,0.557]
[1717320946039,4.29352598,3786.5,3786.3,0.557]
[1717320947430,4.29352598,3786.5,3786.2,0.557]
[1717320947795,4.29442492,3786.5,3786.2,0.557]
[1717320951138,0.06728504,3786.4,3786.2,0.557]
[1717320952344,0.06728504,3786.4,3786.3,2.4724]
[1717320952637,0.06728504,3786.4,3786.3,3.32534]
[1717320953143,1.65346492,3786.6,3786.3,3.32534]
[1717320953348,1.65346492,3786.6,3786.5,0.557]
[1717320953505,1.65346492,3786.6,3786.5,1.107]
[1717320956551,1.65346492,3786.7,3786.5,1.107]
[1717320956832,1.65346492,3786.8,3786.6,1.495234]
[1717320957040,1.65346492,3786.9,3786.7,0.557]
[1717320957602,1.65346492,3786.8,3786.7,0.557]
[1717320959739,1.57713762,3787.0,3786.7,0.557]
[1717320959942,1.65315004,3786.8,3786.7,0.557]
[1717320961134,1.65325472,3786.8,3786.7,0.557]
[1717320961727,1.65325472,3786.9,3786.7,0.557]
[1717320961955,1.65325472,3786.9,3786.8,0.557]
[1717320962123,1.65325472,3786.9,3786.6,0.557]
[1717320962322,1.65325472,3786.8,3786.6,0.557]
[1717320963214,1.65325472,3786.8,3786.7,0.30294]
[1717320963820,1.65325472,3786.8,3786.7,0.85994]
[1717320964044,1.65325472,3786.9,3786.7,0.85994]
[1717320964346,1.65325472,3786.9,3786.5,2.4724]
[1717320964347,1.65325472,3787.0,3786.8,0.557]
[1717320964518,1.65325472,3787.0,3786.8,0.85994]